[Event "European Women Rapid-ch 2023"]
[Site "Monaco"]
[Date "2024.01.13"]
[Round "3.18"]
[White "Iasman, Inna"]
[Black "Daulyte-Cornette, Deimante"]
[Result "0-1"]
[ECO "A50"]
[WhiteElo "1889"]
[BlackElo "2372"]
[Annotator "RC"]
[PlyCount "119"]
[EventDate "2023.12.19"]
[EventType "swiss"]
[EventCountry "MNC"]
[SourceTitle "playchess.com"]
[Source "ChessBase"]
[SourceQuality "1"]
[TimeControl "900+10"]

1. d4 {[%emt 0:00:03]} Nf6 {[%emt 0:00:02]} 2. c4 {[%emt 0:00:03]} b6 {[%emt 0:00:05]} 3. g3 {[%emt 0:00:11]} Bb7 {[%emt 0:00:07]} 4. Nf3 {[%emt 0:00:04]} g6 {[%emt 0:00:10]} 5. Bg2 {[%emt 0:00:08]} Bg7 {[%emt 0:00:06]} 6. O-O {[%emt 0:00:06]} O-O {[%emt 0:00:06]} 7. Nc3 {[%emt 0:00:08]} Ne4 {[%emt 0:00:09]} 8. Qd3 {[%emt 0:01:13]} Nxc3 {[%emt 0:00:23]} 9. bxc3 {[%emt 0:00:46]} Nc6 {[%emt 0:00:45]} 10. Nd2 {[%emt 0:01:07]} e5 {[%emt 0:01:33]} 11. e3 {[%emt 0:01:07]} Re8 {[%emt 0:01:09]} 12. Ba3 {[%emt 0:01:00]} Na5 {[%emt 0:01:08]} 13. Bxb7 {[%emt 0:01:08]} Nxb7 {[%emt 0:00:02]} 14. e4 {[%emt 0:00:52]} exd4 {[%emt 0:03:35]} 15. cxd4 {[%emt 0:00:07]} c5 {[%emt 0:00:03]} 16. Bb2 {[%emt 0:00:27]} cxd4 {[%emt 0:01:13]} 17. Bxd4 {[%emt 0:00:15]} Nc5 {[%emt 0:00:04]} 18. Qc3 {[%emt 0:00:27]} Bxd4 {[%emt 0:01:15]} 19. Qxd4 {[%emt 0:00:03]} Rc8 {[%emt 0:00:06]} 20. e5 {[%emt 0:01:18]} Qc7 {[%emt 0:00:35]} 21. f4 {[%emt 0:00:31]} Ne6 {[%emt 0:02:16]} 22. Qd5 {[%emt 0:00:33]} Qc5+ {[%emt 0:00:22]} 23. Qxc5 {[%emt 0:00:19]} Nxc5 {[%emt 0:00:02]} 24. Rfd1 {[%emt 0:00:11]} d6 {[%emt 0:01:23]} 25. exd6 {[%emt 0:00:11]} Rcd8 {[%emt 0:00:03]} 26. Nb3 {[%emt 0:00:08]} Ne4 {[%emt 0:00:25]} 27. c5 {[%emt 0:00:57]} bxc5 {[%emt 0:00:09]} 28. Rac1 {[%emt 0:00:03]} Nxd6 {[%emt 0:00:55]} 29. Nxc5 {[%emt 0:00:14]} Nf5 {[%emt 0:00:08]} 30. Nd7 {[%emt 0:00:53]} Kg7 {[%emt 0:00:28]} 31. Ne5 {[%emt 0:00:10]} Rxd1+ {[%emt 0:00:39]} 32. Rxd1 {[%emt 0:00:03]} Rc8 {[%emt 0:00:07]} 33. Rd2 {[%emt 0:01:01]} Rc7 {[%emt 0:00:06]} 34. Kf2 {[%emt 0:00:13]} h5 {[%emt 0:00:22]} 35. Kf3 {[%emt 0:01:14]} Kf6 {[%emt 0:00:04]} 36. a3 {[%emt 0:00:30]} g5 {[%emt 0:00:28]} 37. Nd7+ {[%emt 0:00:25]} Ke6 {[%emt 0:00:12]} 38. Ne5 {[%emt 0:00:29]} f6 {[%emt 0:00:11]} 39. Nd3 {[%emt 0:00:34]} g4+ {[%emt 0:00:04]} 40. Kf2 {[%emt 0:00:08]} Rc3 {[%emt 0:00:10]} 41. a4 {[%emt 0:00:23]} a5 {[%emt 0:00:28]} 42. Nb2 {[%emt 0:00:21]} Ra3 {[%emt 0:00:09]} 43. Re2+ {[%emt 0:00:40]} Kd5 {[%emt 0:00:05]} 44. Rd2+ {[%emt 0:00:23]} Kc5 {[%emt 0:00:08]} 45. Nd3+ {[%emt 0:00:15]} Kc4 {[%emt 0:00:05]} 46. Nb2+ {[%emt 0:00:12]} Kc3 {[%emt 0:00:06]} 47. Rd5 {[%emt 0:00:13]} Kxb2 {[%emt 0:00:18]} 48. Rxf5 {[%emt 0:00:03]} Rxa4 {[%emt 0:00:02]} 49. Rxf6 {[%emt 0:00:10]} Rb4 {[%emt 0:00:05]} 50. Ra6 {[%emt 0:00:07]} a4 {[%emt 0:00:01]} 51. f5 {[%emt 0:00:02]} a3 {[%emt 0:00:02]} 52. f6 {[%emt 0:00:45]} a2 {[%emt 0:00:42]} 53. f7 {[%emt 0:00:03]} Rb8 {[%emt 0:00:01]} 54. Rb6+ {[%emt 0:00:26]} Rxb6 {[%emt 0:00:02]} 55. f8=Q {[%emt 0:00:04]} a1=Q {[%emt 0:00:10]} 56. Qh8+ {[%emt 0:00:36]} Ka2 {[%emt 0:00:24]} 57. Qg8+ {[%emt 0:00:04]} Rb3 {[%emt 0:00:08]} 58. Qa8+ {[%emt 0:00:08]} Kb2 {[%emt 0:00:05]} 59. Qh8+ {[%emt 0:00:06]} Rc3 {[%emt 0:00:05]} 60. Qb8+ {[%emt 0:00:49]} 0-1

[Event "European Women Rapid-ch 2023"]
[Site "Monaco"]
[Date "2024.01.13"]
[Round "3.19"]
[White "Bensdorp-De Labaca, Marlies"]
[Black "Zapata Campos, Lidia Karen"]
[Result "1-0"]
[ECO "E90"]
[WhiteElo "2237"]
[BlackElo "2025"]
[Annotator "RC"]
[PlyCount "143"]
[EventDate "2023.12.19"]
[EventType "swiss"]
[EventCountry "MNC"]
[SourceTitle "playchess.com"]
[Source "ChessBase"]
[SourceQuality "1"]
[TimeControl "900+10"]

1. d4 {[%emt 0:00:02]} c5 {[%emt 0:00:02]} 2. d5 {[%emt 0:00:04]} d6 {[%emt 0:00:02]} 3. c4 {[%emt 0:00:03]} g6 {[%emt 0:00:08]} 4. e4 {[%emt 0:00:05]} Bg7 {[%emt 0:00:01]} 5. Bd3 {[%emt 0:00:02]} Nf6 {[%emt 0:00:04]} 6. Nc3 {[%emt 0:00:03]} Nbd7 {[%emt 0:00:02]} 7. Nf3 {[%emt 0:00:42]} O-O {[%emt 0:00:02]} 8. h3 {[%emt 0:00:09]} Ne5 {[%emt 0:00:02]} 9. Nxe5 {[%emt 0:00:05]} dxe5 {[%emt 0:00:01]} 10. O-O {[%emt 0:00:04]} Ne8 {[%emt 0:00:02]} 11. Be3 {[%emt 0:00:11]} b6 {[%emt 0:00:02]} 12. Rc1 {[%emt 0:00:13]} Nd6 {[%emt 0:00:01]} 13. a3 {[%emt 0:00:15]} Ba6 {[%emt 0:00:29]} 14. b3 {[%emt 0:00:48]} f5 {[%emt 0:00:40]} 15. exf5 {[%emt 0:00:02]} gxf5 {[%emt 0:00:01]} 16. f3 {[%emt 0:00:11]} Qe8 {[%emt 0:00:02]} 17. Ne2 {[%emt 0:01:11]} Rc8 {[%emt 0:00:53]} 18. Bb1 {[%emt 0:00:38]} Rd8 {[%emt 0:00:40]} 19. Bg5 {[%emt 0:00:31]} Rd7 {[%emt 0:00:37]} 20. Qe1 {[%emt 0:00:26]} Qh5 {[%emt 0:00:41]} 21. Bd2 {[%emt 0:00:45]} Rc7 {[%emt 0:00:53]} 22. Ng3 {[%emt 0:00:24]} Qh4 {[%emt 0:00:05]} 23. Bc3 {[%emt 0:00:04]} f4 {[%emt 0:03:54]} 24. Nh1 {[%emt 0:00:52]} Qh5 {[%emt 0:00:26]} 25. Rf2 {[%emt 0:00:25]} Nf5 {[%emt 0:00:15]} 26. Re2 {[%emt 0:00:12]} Nd4 {[%emt 0:00:01]} 27. Rb2 {[%emt 0:00:33]} Bc8 {[%emt 0:00:10]} 28. Nf2 {[%emt 0:00:13]} Bf5 {[%emt 0:01:06]} 29. Bxd4 {[%emt 0:00:18]} exd4 {[%emt 0:00:42]} 30. Bxf5 {[%emt 0:00:09]} Qxf5 {[%emt 0:00:02]} 31. Re2 {[%emt 0:00:02]} Rf7 {[%emt 0:00:58]} 32. Re4 {[%emt 0:00:02]} Bf6 {[%emt 0:01:09]} 33. Nd3 {[%emt 0:00:01]} Bg5 {[%emt 0:00:04]} 34. Rc2 {[%emt 0:01:00]} Rg7 {[%emt 0:00:27]} 35. Kh1 {[%emt 0:00:22]} Rd7 {[%emt 0:01:14]} 36. Rce2 {[%emt 0:01:44]} Rd6 {[%emt 0:00:01]} 37. Qd2 {[%emt 0:00:01]} Rh6 {[%emt 0:00:28]} 38. Nf2 {[%emt 0:00:01]} b5 {[%emt 0:02:38]} 39. Qd3 {[%emt 0:01:19]} bxc4 {[%emt 0:00:11]} 40. bxc4 {[%emt 0:00:01]} Rb6 {[%emt 0:00:01]} 41. Rxe7 {[%emt 0:01:55]} Rb1+ {[%emt 0:01:18]} 42. Re1 {[%emt 0:00:00]} Qxd3 {[%emt 0:00:02]} 43. Rxg7+ {[%emt 0:00:00]} Kxg7 {[%emt 0:00:03]} 44. Nxd3 {[%emt 0:00:00]} Rb3 {[%emt 0:00:15]} 45. Nxc5 {[%emt 0:00:00]} Rxa3 {[%emt 0:00:02]} 46. Ne6+ {[%emt 0:00:00]} Kf6 {[%emt 0:00:01]} 47. Nxd4 {[%emt 0:00:00]} Bh4 {[%emt 0:00:08]} 48. Rc1 {[%emt 0:00:00]} Ke5 {[%emt 0:00:17]} 49. Nb5 {[%emt 0:00:00]} Ra2 {[%emt 0:00:03]} 50. Nc3 {[%emt 0:00:00]} Ra5 {[%emt 0:00:25]} 51. Ne4 {[%emt 0:00:00]} Be7 {[%emt 0:01:04]} 52. Kh2 {[%emt 0:00:02]} Ra2 {[%emt 0:00:09]} 53. Nc3 {[%emt 0:00:03]} Ra5 {[%emt 0:00:38]} 54. Nb5 {[%emt 0:00:30]} Bc5 {[%emt 0:00:14]} 55. d6 {[%emt 0:00:39]} a6 {[%emt 0:00:13]} 56. d7 {[%emt 0:00:01]} Bb6 {[%emt 0:00:01]} 57. Na7 {[%emt 0:00:26]} Rc5 {[%emt 0:00:02]} 58. Nc8 {[%emt 0:00:21]} Bd8 {[%emt 0:00:01]} 59. Re1+ {[%emt 0:00:14]} Kf5 {[%emt 0:00:28]} 60. Re8 {[%emt 0:00:06]} Bh4 {[%emt 0:00:02]} 61. Nd6+ {[%emt 0:00:23]} Kg6 {[%emt 0:00:05]} 62. Rg8+ {[%emt 0:00:47]} Kh6 {[%emt 0:00:00]} 63. d8=Q {[%emt 0:00:49]} Bxd8 {[%emt 0:00:03]} 64. Rxd8 {[%emt 0:00:01]} Kg7 {[%emt 0:00:31]} 65. Rd7+ {[%emt 0:00:03]} Kg6 {[%emt 0:00:10]} 66. Ra7 {[%emt 0:00:20]} Rc6 {[%emt 0:00:01]} 67. Ne4 {[%emt 0:00:05]} Rxc4 {[%emt 0:00:10]} 68. Rxa6+ {[%emt 0:00:02]} Kg7 {[%emt 0:00:15]} 69. Ra5 {[%emt 0:00:11]} Kg6 {[%emt 0:00:30]} 70. Rg5+ {[%emt 0:00:02]} Kh6 {[%emt 0:00:02]} 71. Rg4 {[%emt 0:00:07]} Rc6 {[%emt 0:00:02]} 72. Rxf4 {[%emt 0:00:09]} 1-0

[Event "European Women Rapid-ch 2023"]
[Site "Monaco"]
[Date "2024.01.13"]
[Round "3.20"]
[White "Hejazipour, Mitra"]
[Black "Piddubna, Bozhena"]
[Result "1-0"]
[ECO "E12"]
[WhiteElo "2356"]
[BlackElo "2035"]
[Annotator "RC"]
[PlyCount "79"]
[EventDate "2023.12.19"]
[EventType "swiss"]
[EventCountry "MNC"]
[SourceTitle "playchess.com"]
[Source "ChessBase"]
[SourceQuality "1"]
[TimeControl "900+10"]

1. Nf3 {[%emt 0:00:02]} Nf6 {[%emt 0:00:01]} 2. c4 {[%emt 0:00:01]} e6 {[%emt 0:00:02]} 3. Nc3 {[%emt 0:00:05]} b6 {[%emt 0:00:04]} 4. d4 {[%emt 0:00:06]} Bb7 {[%emt 0:00:03]} 5. a3 {[%emt 0:00:03]} Be7 {[%emt 0:00:02]} 6. d5 {[%emt 0:00:03]} O-O {[%emt 0:00:37]} 7. e4 {[%emt 0:00:02]} exd5 {[%emt 0:00:07]} 8. cxd5 {[%emt 0:00:02]} Re8 {[%emt 0:00:06]} 9. Bd3 {[%emt 0:00:05]} d6 {[%emt 0:01:34]} 10. O-O {[%emt 0:00:04]} Nbd7 {[%emt 0:00:02]} 11. Nd4 {[%emt 0:00:06]} Bf8 {[%emt 0:00:09]} 12. Bg5 {[%emt 0:00:12]} h6 {[%emt 0:00:12]} 13. Bxf6 {[%emt 0:00:55]} Qxf6 {[%emt 0:00:07]} 14. Bb5 {[%emt 0:00:05]} Rad8 {[%emt 0:00:32]} 15. Nc6 {[%emt 0:00:24]} Bxc6 {[%emt 0:00:29]} 16. Bxc6 {[%emt 0:00:02]} Re7 {[%emt 0:00:09]} 17. Qc2 {[%emt 0:01:50]} Ne5 {[%emt 0:00:37]} 18. Bb5 {[%emt 0:00:17]} Ng6 {[%emt 0:01:04]} 19. Rad1 {[%emt 0:02:17]} Re5 {[%emt 0:00:14]} 20. g3 {[%emt 0:00:24]} h5 {[%emt 0:05:31]} 21. f4 {[%emt 0:00:19]} Re7 {[%emt 0:00:01]} 22. Ne2 {[%emt 0:00:16]} Ra8 {[%emt 0:01:07]} 23. Bc6 {[%emt 0:00:36]} Rd8 {[%emt 0:00:02]} 24. Nd4 {[%emt 0:00:11]} a6 {[%emt 0:00:01]} 25. Nf5 {[%emt 0:00:42]} Rde8 {[%emt 0:01:03]} 26. Bxe8 {[%emt 0:00:18]} Rxe8 {[%emt 0:00:01]} 27. Rfe1 {[%emt 0:00:33]} h4 {[%emt 0:00:04]} 28. Qc3 {[%emt 0:00:19]} Qd8 {[%emt 0:00:11]} 29. Rc1 {[%emt 0:00:10]} hxg3 {[%emt 0:00:03]} 30. hxg3 {[%emt 0:00:02]} Qd7 {[%emt 0:00:16]} 31. Qc6 {[%emt 0:00:25]} Qc8 {[%emt 0:00:19]} 32. Qxc7 {[%emt 0:00:06]} Qa8 {[%emt 0:00:01]} 33. Nxd6 {[%emt 0:00:18]} Bxd6 {[%emt 0:00:35]} 34. Qxd6 {[%emt 0:00:03]} b5 {[%emt 0:00:01]} 35. Rc7 {[%emt 0:00:16]} Qb8 {[%emt 0:00:43]} 36. b4 {[%emt 0:01:02]} a5 {[%emt 0:01:55]} 37. bxa5 {[%emt 0:01:12]} b4 {[%emt 0:00:03]} 38. axb4 {[%emt 0:00:11]} Qb5 {[%emt 0:00:11]} 39. Qd7 {[%emt 0:00:16]} Qd3 {[%emt 0:01:05]} 40. Qxf7+ {[%emt 0:00:03]} 1-0

[Event "European Women Rapid-ch 2023"]
[Site "Monaco"]
[Date "2024.01.13"]
[Round "3.21"]
[White "Navrotescu, Andreea"]
[Black "Galvan Cipriani, Viviana"]
[Result "1-0"]
[ECO "A46"]
[WhiteElo "2222"]
[BlackElo "2104"]
[Annotator "TA"]
[PlyCount "81"]
[EventDate "2023.12.19"]
[EventType "swiss"]
[EventCountry "MNC"]
[SourceTitle "playchess.com"]
[Source "ChessBase"]
[SourceQuality "1"]
[TimeControl "900+10"]

{[%evp 9,81,12,40,8,42,13,27,18,23,32,23,18,35,0,0,7,16,8,8,18,4,-56,-73,-89,-88,-131,-9,-117,-98,-181,-166,-255,-118,-113,118,131,196,173,174,158,148,137,204,185,195,139,212,217,210,202,441,453,437,406,456,423,446,455,452,441,502,487,1001,1004,997,991,983,985,1139,1121,29996,29997,29999,29999]} 1. d4 {[%emt 0:00:01]} Nf6 {[%emt 0:00:02]} 2. Nf3 {[%emt 0:00:04]} e6 {[%emt 0:00:06]} 3. e3 {[%emt 0:00:01]} c5 {[%emt 0:00:19]} 4. Bd3 {[%emt 0:00:03]} Nc6 {[%emt 0:00:03]} 5. O-O {[%emt 0:00:04]} Qc7 {[%emt 0:00:44]} 6. a3 {[%emt 0:00:09]} b6 {[%emt 0:00:26]} 7. b3 {[%emt 0:00:04]} Bb7 {[%emt 0:00:02]} 8. Bb2 {[%emt 0:00:02] White has an edge.} Be7 {[%emt 0:00:16]} 9. c4 {[%emt 0:00:02]} cxd4 {[%emt 0:00:16]} 10. exd4 {[%emt 0:00:10][%cal Od4d5]} d5 {[%emt 0:00:05]} 11. Nbd2 {[%emt 0:00:44]} O-O {[%emt 0:00:23]} 12. Rc1 {[%emt 0:00:05]} Qf4 {[%emt 0:01:05]} 13. c5 {[%emt 0:00:36]} bxc5 {[%emt 0:01:09]} 14. dxc5 {[%emt 0:00:02]} a5 $1 {[%emt 0:00:07]} 15. Bb1 {[%emt 0:02:49]} (15. Re1 $11) 15... Rfc8 $15 {[%emt 0:02:26]} 16. Qc2 {[%emt 0:00:23]} Qh6 {[%emt 0:01:30]} 17. Rfe1 {[%emt 0:03:33]} Ba6 {[%emt 0:02:58]} (17... Nd7 $17 {[%cal Oa8b8]} 18. Qd1 Nxc5 (18... Bxc5 19. Nc4 $17)) 18. Bc3 {[%emt 0:02:08]} (18. Nd4 $11 {remains equal.}) 18... Rab8 {[%emt 0:01:15]} (18... Bxc5 19. Bxf6 Bxa3 20. Bb2 $16) 19. Nf1 {[%emt 0:00:02]} (19. b4 $17 {keeps fighting.}) 19... Ne4 $19 {[%emt 0:00:30]} (19... Bxc5 20. Bxf6 gxf6 21. Qxc5 $11) 20. Ng3 {[%emt 0:05:17]} (20. Rxe4 {is a better defense.} dxe4 21. Qxe4 Rxb3 (21... Qxc1 22. Qxh7+ Kf8 23. Qh8#) 22. N1d2 Rxa3 (22... Bxc5 $2 23. Nxb3 Bxa3 24. Bd2 $18) 23. Bb2) 20... Nxc5 {[%emt 0:01:43]} (20... Bxc5 21. Nxe4 dxe4 22. Qxe4 $14 (22. Bd2 e3 $11)) (20... Nxc3 $1 $19 {has better winning chances.} 21. Qxc3 Bf6) 21. Bd2 $17 {[%emt 0:00:28] [#] Prevents d4} Bd3 $2 {[%emt 0:02:46]} 22. Qxc5 $16 {[%emt 0:00:53] White stays focused until the end.} Qg6 {[%emt 0:00:20]} (22... Bxc5 $16 23. Bxh6 Bxa3 24. Bxd3 gxh6) 23. Qe3 {[%emt 0:00:16]} Bxb1 {[%emt 0:00:03]} 24. Rxb1 {[%emt 0:00:01] aiming for a4.} Bxa3 {[%emt 0:00:03]} 25. h4 {[%emt 0:00:19][%cal Bh2h4,Bh4h5][%mdl 32]} Rd8 {[%emt 0:00:07]} (25... h6 $16 {might work better.} 26. Qf4 d4) 26. h5 $18 {[%emt 0:00:02]} Qf6 {[%emt 0:00:02]} 27. Qe2 {[%emt 0:00:34]} (27. h6 $18) 27... Bb4 {[%emt 0:00:20]} (27... h6 $16 28. Qd3 Rdc8) 28. Bg5 {[%emt 0:00:04]} Nd4 {[%emt 0:00:09]} 29. Nxd4 {[%emt 0:00:09]} Qxd4 {[%emt 0:00:02]} (29... Qxg5 30. Nc6 Bxe1) 30. Red1 {[%emt 0:00:05]} ({Don't take} 30. Bxd8 Rxd8 31. Red1 Qf4 $18) 30... Qb6 {[%emt 0:00:08]} 31. Bxd8 {[%emt 0:00:01]} Rxd8 {[%emt 0:00:02]} 32. Rbc1 {[%emt 0:00:04][%cal Bb1c1,Bc1c2,Bc2c8,Bc8a8,Ba8a7][%mdl 32]} h6 {[%emt 0:00:03]} 33. Rc2 {[%emt 0:00:14]} Bd6 {[%emt 0:00:05]} 34. Qd3 {[%emt 0:00:05]} Rb8 {[%emt 0:00:04]} 35. Rdc1 {[%emt 0:00:10]} Qxb3 {[%emt 0:00:36]} (35... Qb7 $142 36. Ne2 Be5) 36. Rc8+ {[%emt 0:00:01]} Bf8 {[%emt 0:00:01]} 37. Qxb3 {[%emt 0:00:18]} Rxb3 {[%emt 0:00:03]} 38. Ra8 {[%emt 0:00:04]} f5 {[%emt 0:00:39]} 39. Rcc8 {[%emt 0:00:02]} Kh7 {[%emt 0:00:05]} 40. Rxf8 {[%emt 0:00:03][%csl Ga8][%cal Rf8h8]} g5 {[%emt 0:00:02]} 41. Ra7+ {[%emt 0:00:02] Weighted Error Value: White=0.26 (precise) /Black=0.61.  Mistake:       	White=5     	Black=8      Inaccurate:     	White=3     	Black=1      OK:         	White=9     	Black=10     Best:        	White=2     	Black=3      Strong:       	---       	Black=1} 1-0

[Event "European Women Rapid-ch 2023"]
[Site "Monaco"]
[Date "2024.01.13"]
[Round "3.22"]
[White "Bellaiche, Elise"]
[Black "Lazarne Vajda, Szidonia"]
[Result "0-1"]
[ECO "C54"]
[WhiteElo "2012"]
[BlackElo "2283"]
[Annotator "RC"]
[PlyCount "186"]
[EventDate "2023.12.19"]
[EventType "swiss"]
[EventCountry "MNC"]
[SourceTitle "playchess.com"]
[Source "ChessBase"]
[SourceQuality "1"]
[TimeControl "900+10"]

1. e4 {[%emt 0:00:01]} e5 {[%emt 0:00:03]} 2. Nf3 {[%emt 0:00:01]} Nc6 {[%emt 0:00:02]} 3. Bc4 {[%emt 0:00:01]} Bc5 {[%emt 0:00:04]} 4. c3 {[%emt 0:00:01]} Nf6 {[%emt 0:00:10]} 5. d3 {[%emt 0:00:01]} a6 {[%emt 0:00:10]} 6. Bb3 {[%emt 0:00:09]} h6 {[%emt 0:00:13]} 7. Nbd2 {[%emt 0:00:16]} O-O {[%emt 0:00:12]} 8. O-O {[%emt 0:00:03]} d5 {[%emt 0:00:22]} 9. Qe2 {[%emt 0:02:04]} d4 {[%emt 0:00:45]} 10. Re1 {[%emt 0:01:14]} Re8 {[%emt 0:00:22]} 11. Nf1 {[%emt 0:00:20]} Be6 {[%emt 0:00:39]} 12. Bc2 {[%emt 0:00:35]} Qd7 {[%emt 0:00:46]} 13. Ng3 {[%emt 0:00:30]} Rad8 {[%emt 0:00:28]} 14. Bd2 {[%emt 0:00:25]} Kh8 {[%emt 0:00:00]} 15. a4 {[%emt 0:01:43]} b5 {[%emt 0:00:52]} 16. axb5 {[%emt 0:00:23]} axb5 {[%emt 0:02:06]} 17. Ra6 {[%emt 0:02:05]} Bb6 {[%emt 0:00:00]} 18. Rd1 {[%emt 0:00:43]} Ra8 {[%emt 0:00:00]} 19. Rxa8 {[%emt 0:00:56]} Rxa8 {[%emt 0:00:00]} 20. Bb1 {[%emt 0:00:01]} Bb3 {[%emt 0:00:00]} 21. Rc1 {[%emt 0:00:20]} Ra1 {[%emt 0:00:00]} 22. Bc2 {[%emt 0:00:29]} Rxc1+ {[%emt 0:00:03]} 23. Bxc1 {[%emt 0:00:00]} Bxc2 {[%emt 0:00:01]} 24. Qxc2 {[%emt 0:00:01]} dxc3 {[%emt 0:00:02]} 25. bxc3 {[%emt 0:00:03]} Ng4 {[%emt 0:00:00]} 26. Be3 {[%emt 0:01:28]} Nxe3 {[%emt 0:00:48]} 27. fxe3 {[%emt 0:00:01]} Bxe3+ {[%emt 0:00:01]} 28. Kf1 {[%emt 0:00:00]} g6 {[%emt 0:01:09]} 29. Ke2 {[%emt 0:00:55]} Bf4 {[%emt 0:01:01]} 30. Qb3 {[%emt 0:02:19]} b4 {[%emt 0:03:23]} 31. cxb4 {[%emt 0:01:37]} Kg7 {[%emt 0:00:31]} 32. Qc4 {[%emt 0:00:20]} Qd6 {[%emt 0:00:39]} 33. b5 {[%emt 0:00:28]} Na5 {[%emt 0:00:07]} 34. Qa4 {[%emt 0:00:16]} Nb7 {[%emt 0:00:18]} 35. Qa6 {[%emt 0:00:07]} Qb6 {[%emt 0:01:09]} 36. Qxb6 {[%emt 0:00:18]} cxb6 {[%emt 0:00:01]} 37. Nf1 {[%emt 0:00:23]} f6 {[%emt 0:00:16]} 38. Ne3 {[%emt 0:00:07]} Bxe3 {[%emt 0:00:56]} 39. Kxe3 {[%emt 0:00:00]} Nd6 {[%emt 0:00:01]} 40. Nd2 {[%emt 0:00:07]} Nxb5 {[%emt 0:00:09]} 41. Nc4 {[%emt 0:00:00]} Nd4 {[%emt 0:00:16]} 42. Nxb6 {[%emt 0:00:01]} h5 {[%emt 0:00:02]} 43. Nd5 {[%emt 0:00:04]} g5 {[%emt 0:00:19]} 44. h3 {[%emt 0:00:10]} Kf7 {[%emt 0:00:19]} 45. g4 {[%emt 0:00:05]} h4 {[%emt 0:00:01]} 46. Nc3 {[%emt 0:00:24]} Ke6 {[%emt 0:01:05]} 47. Nd1 {[%emt 0:00:21]} Kd6 {[%emt 0:00:08]} 48. Nc3 {[%emt 0:00:12]} Nc6 {[%emt 0:00:12]} 49. Nd5 {[%emt 0:00:06]} Ke6 {[%emt 0:00:01]} 50. Kd2 {[%emt 0:00:16]} Nd4 {[%emt 0:00:14]} 51. Ke3 {[%emt 0:00:01]} Nb3 {[%emt 0:00:05]} 52. Ke2 {[%emt 0:00:13]} Na5 {[%emt 0:00:08]} 53. Ke3 {[%emt 0:00:07]} Nc6 {[%emt 0:00:02]} 54. Kd2 {[%emt 0:00:09]} Kf7 {[%emt 0:00:03]} 55. Ke3 {[%emt 0:00:05]} Nd4 {[%emt 0:00:01]} 56. Nc3 {[%emt 0:00:07]} Ne6 {[%emt 0:00:04]} 57. Nd1 {[%emt 0:00:09]} Nf4 {[%emt 0:00:03]} 58. Nf2 {[%emt 0:00:01]} Ke6 {[%emt 0:00:03]} 59. Kd2 {[%emt 0:00:04]} Kd6 {[%emt 0:00:01]} 60. Kc3 {[%emt 0:00:03]} Kc5 {[%emt 0:00:02]} 61. Kc2 {[%emt 0:00:15]} Kd4 {[%emt 0:00:59]} 62. Kd2 {[%emt 0:00:01]} Ne6 {[%emt 0:00:22]} 63. Nd1 {[%emt 0:00:10]} Nc5 {[%emt 0:00:11]} 64. Nf2 {[%emt 0:00:19]} Nb3+ {[%emt 0:00:35]} 65. Kc2 {[%emt 0:00:02]} Na5 {[%emt 0:00:05]} 66. Kd2 {[%emt 0:00:05]} Nc6 {[%emt 0:00:01]} 67. Nd1 {[%emt 0:00:09]} Nb4 {[%emt 0:00:21]} 68. Nf2 {[%emt 0:00:02]} Kc5 {[%emt 0:00:01]} 69. Kc3 {[%emt 0:00:21]} Nc6 {[%emt 0:00:05]} 70. Nd1 {[%emt 0:00:33]} Nd4 {[%emt 0:00:01]} 71. Nf2 {[%emt 0:00:10]} Nf3 {[%emt 0:00:34]} 72. Nd1 {[%emt 0:00:11]} Ng1 {[%emt 0:00:06]} 73. Nf2 {[%emt 0:00:02]} Ne2+ {[%emt 0:00:01]} 74. Kd2 {[%emt 0:00:09]} Nf4 {[%emt 0:00:05]} 75. Kc3 {[%emt 0:00:12]} Kb5 {[%emt 0:00:06]} 76. Kb3 {[%emt 0:00:13]} Ne2 {[%emt 0:00:04]} 77. Kc2 {[%emt 0:00:25]} Kb4 {[%emt 0:00:05]} 78. Kb2 {[%emt 0:00:02]} Nf4 {[%emt 0:00:23]} 79. Kc2 {[%emt 0:00:10]} Ne6 {[%emt 0:00:03]} 80. Kb2 {[%emt 0:00:19]} Kc5 {[%emt 0:00:45]} 81. Kc3 {[%emt 0:00:03]} Nf4 {[%emt 0:00:01]} 82. Kc2 {[%emt 0:00:06]} Kd4 {[%emt 0:00:04]} 83. Kd2 {[%emt 0:00:08]} Ne6 {[%emt 0:00:10]} 84. Nd1 {[%emt 0:00:03]} Kc5 {[%emt 0:00:42]} 85. Kc3 {[%emt 0:00:06]} Nd4 {[%emt 0:00:02]} 86. Nf2 {[%emt 0:00:10]} Nb5+ {[%emt 0:00:04]} 87. Kc2 {[%emt 0:00:09]} Kd4 {[%emt 0:00:02]} 88. Kd2 {[%emt 0:00:05]} Nc7 {[%emt 0:00:26]} 89. Nd1 {[%emt 0:00:04]} Ne6 {[%emt 0:00:02]} 90. Nf2 {[%emt 0:00:20]} Nf4 {[%emt 0:00:01]} 91. Nd1 {[%emt 0:00:48]} Nxd3 {[%emt 0:00:14]} 92. Ne3 {[%emt 0:00:04]} Kxe4 {[%emt 0:00:06]} 93. Nf5 {[%emt 0:00:14]} Nf4 {[%emt 0:00:01]} 0-1